bitfinex/quotes_BTCUSD_20230901
["timestamp","ask_amount","ask_price","bid_price","bid_amount"]
[1693579822602,0.015,25802.0,25801.0,0.19207]
[1693579822814,0.065,25802.0,25801.0,0.87915678]
[1693579823282,0.37258514,25807.0,25802.0,0.5]
[1693579823494,0.065,25805.0,25803.0,0.37691035]
[1693579824146,0.065,25805.0,25803.0,0.07691035]
[1693579824391,0.02,25806.0,25801.0,0.19207]
[1693579824392,0.065,25802.0,25801.0,0.19207]
[1693579824606,0.065,25802.0,25801.0,0.45507]
[1693579826113,0.085,25802.0,25801.0,0.45507]
[1693579826325,0.085,25802.0,25801.0,0.15507]
[1693579827375,0.085,25802.0,25801.0,0.28285365]
[1693579827798,0.28910929,25802.0,25801.0,0.19207]
[1693579828071,0.085,25802.0,25801.0,0.45507]
[1693579828282,0.085,25802.0,25801.0,0.19107]
[1693579828283,0.53208678,25802.0,25801.0,0.19107]
[1693579828488,0.53208678,25802.0,25801.0,0.036]
[1693579828693,0.66579805,25802.0,25801.0,0.036]
[1693579828902,0.6753341,25802.0,25801.0,0.036]
[1693579829131,0.28824732,25802.0,25801.0,0.036]
[1693579829359,0.0494,25798.0,25795.0,0.3022]
[1693579829610,0.0494,25797.0,25796.0,0.38708678]
[1693579829825,0.0494,25798.0,25796.0,0.38708678]
[1693579830044,0.0494,25800.0,25797.0,0.3]
[1693579830260,0.0494,25799.0,25798.0,0.38708678]
[1693579830496,0.0494,25799.0,25798.0,0.68708678]
[1693579831185,0.0494,25799.0,25798.0,0.3]
[1693579831633,0.0494,25799.0,25798.0,0.0864]
[1693579832089,0.0694,25799.0,25798.0,0.0494]
[1693579832309,0.0694,25799.0,25798.0,0.0864]
[1693579832492,0.2548731,25799.0,25798.0,0.0864]
[1693579832721,0.0494,25796.0,25790.0,1.469]
[1693579832952,0.29063148,25795.0,25792.0,0.38708678]
[1693579833175,0.08639677,25795.0,25792.0,0.46214678]
[1693579833388,0.13579677,25795.0,25793.0,0.37498]
[1693579833600,0.13579677,25795.0,25794.0,0.38708678]
[1693579833810,0.08639677,25795.0,25794.0,0.38708678]
[1693579834017,0.13579677,25795.0,25794.0,0.68708678]
[1693579834665,0.00994134,25797.0,25794.0,0.68708678]
[1693579834879,0.02,25800.0,25796.0,0.3022]
[1693579834880,0.0494,25800.0,25796.0,0.3022]
[1693579835086,0.0494,25800.0,25797.0,0.84128686]
[1693579835748,0.0494,25800.0,25797.0,0.68708678]
[1693579837800,0.0494,25800.0,25798.0,0.08090538]
[1693579838019,0.0694,25798.0,25797.0,0.3]
[1693579838231,0.0694,25798.0,25797.0,0.037]
[1693579838448,0.0494,25799.0,25798.0,0.09883024]
[1693579838650,0.18545799,25799.0,25798.0,0.07871805]
[1693579838856,0.18545799,25799.0,25794.0,0.3516]
[1693579838857,0.05199241,25798.0,25794.0,0.3516]
[1693579839057,0.20682712,25798.0,25795.0,0.38708678]
[1693579839273,0.0494,25799.0,25798.0,0.08466368]
[1693579839502,0.23503701,25799.0,25795.0,0.38708678]
[1693579839731,0.0524,25800.0,25796.0,0.3]
[1693579839945,0.18556413,25799.0,25797.0,0.38708678]
[1693579840359,0.18556413,25799.0,25798.0,0.3]
[1693579840567,0.18556413,25799.0,25798.0,0.68708678]
[1693579841029,0.18556413,25799.0,25798.0,0.72408678]
[1693579841030,0.18856413,25799.0,25798.0,0.72408678]
[1693579841224,0.24053008,25799.0,25798.0,0.337]
[1693579841435,0.23753008,25799.0,25798.0,0.3]
[1693579841846,0.24053008,25799.0,25798.0,0.03857238]
[1693579842066,0.24053008,25799.0,25798.0,0.037]
[1693579842297,0.23753008,25799.0,25798.0,0.07342442]
[1693579842504,0.24053008,25799.0,25798.0,0.11042442]
[1693579843654,0.05195492,25799.0,25798.0,0.46208678]
[1693579843869,0.0494,25802.0,25799.0,0.09275709]
[1693579844093,0.14733718,25801.0,25800.0,0.38708678]
[1693579844297,0.036405,25801.0,25800.0,0.92758678]
[1693579844507,0.13921529,25802.0,25800.0,0.92758678]
[1693579844729,0.13921529,25802.0,25801.0,0.3]
[1693579844976,0.13921529,25802.0,25801.0,0.37159074]
[1693579844977,0.3990936,25802.0,25801.0,0.37159074]
[1693579845391,0.60022168,25802.0,25801.0,0.3]
[1693579845609,0.60022168,25802.0,25794.0,0.15769766]
[1693579845610,0.0494,25796.0,25794.0,0.07991766]
[1693579845821,0.15483471,25795.0,25794.0,0.07991766]
[1693579846042,0.0494,25796.0,25794.0,0.70750444]
[1693579846235,0.0494,25796.0,25795.0,0.38708678]
[1693579846445,0.18198901,25796.0,25794.0,0.2899]
[1693579846653,0.0494,25796.0,25794.0,0.0494]
[1693579846862,0.03271441,25795.0,25794.0,0.0494]
[1693579847098,4.1e-07,25795.0,25794.0,0.67698678]
[1693579847292,0.14035867,25796.0,25794.0,0.3494]
[1693579847509,0.14035867,25796.0,25795.0,0.37389171]
[1693579847510,0.185838,25796.0,25795.0,0.37389171]
[1693579847723,0.31845781,25796.0,25795.0,0.37389171]
[1693579847931,0.34790361,25796.0,25795.0,0.37389171]
[1693579848142,0.31835534,25797.0,25795.0,0.68708678]
[1693579848357,0.20191734,25798.0,25796.0,0.62758678]
[1693579848564,0.28910216,25797.0,25795.0,0.37955603]
[1693579848763,0.13268799,25796.0,25795.0,0.37955603]
[1693579848969,0.4510195,25796.0,25795.0,0.37955603]
[1693579849175,0.31460533,25796.0,25795.0,0.37955603]
[1693579849383,0.31460533,25796.0,25795.0,0.41655603]
[1693579849600,0.26926368,25796.0,25795.0,0.41655603]
[1693579849802,0.13268799,25796.0,25795.0,0.41655603]
[1693579850235,0.15957569,25797.0,25795.0,0.41655603]
[1693579850451,0.003,25797.0,25796.0,0.2405]
[1693579850660,0.02,25797.0,25796.0,0.5405]
[1693579851120,0.02,25797.0,25794.0,0.0494]
[1693579851121,0.02,25795.0,25794.0,0.0494]
[1693579851320,0.58594571,25795.0,25794.0,0.0494]
[1693579852644,0.19885893,25795.0,25794.0,0.0494]
[1693579852881,0.40216454,25795.0,25794.0,0.0494]
[1693579853126,0.90959401,25795.0,25794.0,0.0494]
[1693579853399,0.87530327,25795.0,25794.0,0.0494]
[1693579853884,0.49849477,25795.0,25794.0,0.0664]
[1693579854096,0.69280527,25795.0,25794.0,0.0664]
[1693579854293,0.90458155,25795.0,25794.0,0.0494]
[1693579854505,1.09512617,25795.0,25794.0,0.0494]
[1693579854717,1.09712617,25795.0,25794.0,0.0794]
[1693579854922,0.71003939,25795.0,25794.0,0.0794]
[1693579855122,0.57332089,25795.0,25794.0,0.0794]
[1693579855330,0.76786305,25795.0,25794.0,0.0494]
[1693579855538,1.10477718,25795.0,25794.0,0.0494]
[1693579855977,1.51317427,25795.0,25778.0,0.08672]
[1693579856244,1.51317427,25795.0,25780.0,0.2454]
[1693579856245,0.02,25785.0,25780.0,0.2454]
[1693579856452,0.02,25785.0,25780.0,0.38708678]
[1693579856663,0.02,25785.0,25780.0,0.63248678]
[1693579856869,0.02,25785.0,25780.0,0.67248678]
[1693579857531,0.02,25783.0,25780.0,0.2854]
[1693579857740,0.02,25790.0,25780.0,0.2854]
[1693579857741,0.003,25785.0,25781.0,0.46652678]
[1693579857952,0.02,25788.0,25781.0,0.70972814]
[1693579858161,0.02,25788.0,25786.0,0.2405]
[1693579858364,0.02,25790.0,25787.0,0.54192149]
[1693579858595,0.04,25793.0,25790.0,0.2405]
[1693579858596,0.06,25793.0,25790.0,0.2405]
[1693579858813,0.13120494,25796.0,25792.0,0.2405]
[1693579859012,0.13120494,25796.0,25793.0,0.45483471]
[1693579859224,0.22802938,25796.0,25793.0,0.45483471]
[1693579859435,0.13120494,25796.0,25793.0,0.45483471]
[1693579859636,0.09120494,25795.0,25793.0,0.45483471]
[1693579859847,0.09120494,25795.0,25793.0,0.3]
[1693579860314,0.22802938,25795.0,25793.0,0.3]
[1693579860543,0.22802938,25795.0,25794.0,0.09036811]
[1693579860972,0.20098253,25794.0,25790.0,0.3]
[1693579861191,0.35221124,25794.0,25790.0,0.3]
[1693579861431,0.35221124,25794.0,25787.0,0.2559]
[1693579861432,0.28805315,25794.0,25789.0,0.2405]
[1693579861648,0.09122871,25794.0,25790.0,0.3]
[1693579861851,0.28805315,25794.0,25790.0,0.3]
[1693579862067,0.22805315,25794.0,25790.0,0.3]
[1693579862294,0.003,25795.0,25792.0,0.481]
[1693579862513,0.09122871,25798.0,25794.0,0.2405]
[1693579862724,0.09122871,25798.0,25796.0,0.2405]
[1693579862940,0.13682444,25799.0,25797.0,0.3]
[1693579862941,0.31925702,25799.0,25797.0,0.3]
[1693579863149,0.31925702,25799.0,25797.0,0.3938508]
[1693579863368,0.43813651,25798.0,25797.0,0.3938508]
[1693579863617,0.13682444,25798.0,25797.0,0.3]
[1693579863831,0.13688869,25800.0,25797.0,0.5405]
[1693579864049,0.31940452,25800.0,25797.0,0.92758678]
[1693579864260,0.4393374,25799.0,25797.0,0.5595]
[1693579864463,0.13788869,25799.0,25797.0,0.5595]
[1693579864681,0.13688869,25799.0,25797.0,0.5405]
[1693579864898,0.13688869,25799.0,25797.0,0.39956264]
[1693579864899,0.13688869,25798.0,25797.0,0.39956264]
[1693579865131,0.02351691,25798.0,25797.0,0.09956264]
[1693579865344,0.1604056,25798.0,25797.0,0.10556264]
[1693579865551,0.34292143,25798.0,25797.0,0.40556264]
[1693579865779,0.32512842,25798.0,25797.0,0.40556264]
[1693579865994,0.43949426,25798.0,25797.0,0.306]
[1693579866471,0.67850665,25798.0,25797.0,0.006]
[1693579866694,0.06,25795.0,25790.0,0.155103]
[1693579866900,0.1970091,25795.0,25790.0,0.155103]
[1693579867106,0.3196879,25795.0,25791.0,0.62758678]
[1693579867562,0.3196879,25796.0,25793.0,0.2405]
[1693579867813,0.1370091,25796.0,25793.0,0.62758678]
[1693579868016,0.1370091,25796.0,25794.0,0.3]
[1693579868232,0.1370091,25796.0,25795.0,0.08252907]
[1693579868860,0.3196879,25796.0,25795.0,0.08252907]
[1693579869087,0.25408901,25796.0,25794.0,0.3]
[1693579869302,0.13704723,25795.0,25794.0,0.38428447]
[1693579869498,0.13704723,25795.0,25794.0,0.3]
[1693579870340,0.13704723,25796.0,25794.0,0.3]
[1693579870550,0.13704723,25796.0,25795.0,0.09440275]
[1693579870972,0.14004723,25796.0,25795.0,0.12740275]
[1693579871383,0.13704723,25796.0,25795.0,0.09411575]
[1693579871599,0.31972603,25796.0,25795.0,0.09411575]
[1693579871805,0.25669227,25796.0,25795.0,0.13111575]
[1693579872431,0.1856788,25796.0,25795.0,0.037]
[1693579872644,0.1856788,25796.0,25795.0,0.11929931]
[1693579872857,0.14008639,25796.0,25795.0,0.11929931]
[1693579873058,0.32276519,25796.0,25795.0,0.11929931]
[1693579874819,0.23148166,25796.0,25795.0,0.11929931]
[1693579875308,0.23148166,25796.0,25795.0,0.037]
[1693579875309,0.25456431,25796.0,25795.0,0.037]
[1693579875517,0.1856788,25796.0,25795.0,0.037]
[1693579875728,0.3227332,25796.0,25795.0,0.037]
[1693579875938,0.1856788,25796.0,25795.0,0.037]
[1693579876147,0.1856788,25796.0,25795.0,0.11440575]
[1693579876360,0.25176318,25796.0,25795.0,0.11440575]
[1693579876999,0.25141219,25796.0,25795.0,0.11440575]
[1693579877209,0.47976069,25796.0,25795.0,0.11440575]
[1693579877417,0.47976069,25796.0,25795.0,0.037]
[1693579877418,0.14004947,25796.0,25795.0,0.037]
[1693579877642,0.14004947,25796.0,25795.0,0.12847169]
[1693579877852,0.1856788,25796.0,25795.0,0.037]
[1693579878060,0.4140273,25796.0,25795.0,0.037]
[1693579878292,0.48135015,25796.0,25795.0,0.037]
[1693579878952,0.29867135,25796.0,25795.0,0.12635005]
[1693579879161,0.003,25796.0,25795.0,0.12635005]
[1693579879367,0.18573721,25796.0,25795.0,0.12635005]
[1693579880226,0.2765706,25796.0,25795.0,0.12635005]
[1693579880642,0.20881931,25796.0,25795.0,0.12635005]
[1693579881503,0.34590532,25796.0,25795.0,0.12635005]
[1693579881971,0.16316811,25796.0,25795.0,0.12635005]
[1693579883455,0.25458065,25796.0,25795.0,0.12635005]
[1693579884751,0.25458065,25796.0,25795.0,0.037]
[1693579884954,0.44317411,25796.0,25795.0,0.037]
[1693579885378,0.67152261,25796.0,25795.0,0.037]
[1693579885794,0.37684979,25796.0,25795.0,0.037]
[1693579886430,0.51398677,25796.0,25795.0,0.037]
[1693579886887,0.98137052,25796.0,25795.0,0.037]
[1693579887106,1.10822181,25796.0,25795.0,0.037]
[1693579887324,0.86481331,25796.0,25795.0,0.037]
[1693579887533,0.79863331,25796.0,25795.0,0.037]
[1693579887760,0.79863331,25796.0,25790.0,0.155103]
[1693579887761,0.06,25791.0,25790.0,0.155103]
[1693579888656,0.44708678,25791.0,25790.0,0.155103]
[1693579888874,0.60748678,25791.0,25790.0,0.155103]
[1693579889106,0.62748678,25791.0,25782.0,0.2422]
[1693579889348,0.38708678,25790.0,25782.0,0.36646013]
[1693579889563,0.06,25788.0,25782.0,0.33543327]
[1693579890202,0.06,25788.0,25783.0,0.3]
[1693579890645,0.04,25784.0,25782.0,0.007]
[1693579890859,0.06,25783.0,25778.0,0.09212967]
[1693579891082,0.06,25783.0,25777.0,0.09212967]
[1693579891083,0.04,25782.0,25777.0,0.09212967]
[1693579891300,0.06,25780.0,25777.0,0.09212967]
[1693579891528,0.15464977,25779.0,25777.0,0.18255824]
[1693579891735,0.15464977,25779.0,25776.0,0.48714031]
[1693579891976,0.15464977,25779.0,25776.0,0.34832967]
[1693579892180,0.44708678,25780.0,25776.0,0.34832967]
[1693579892181,0.06,25780.0,25776.0,0.34832967]
[1693579892413,0.06,25783.0,25778.0,0.1604]
[1693579892642,0.1583,25785.0,25782.0,0.1604]
[1693579892643,0.02,25785.0,25782.0,0.1604]
[1693579892863,0.003,25783.0,25782.0,0.54748678]
[1693579893091,0.003,25783.0,25782.0,0.84748678]
[1693579893305,0.003,25783.0,25782.0,0.3604]
[1693579893513,0.003,25783.0,25782.0,0.3]
[1693579893722,0.06,25785.0,25782.0,0.3]
[1693579894143,0.003,25783.0,25780.0,0.3]
[1693579894366,0.003,25783.0,25782.0,0.09265477]
[1693579895465,0.156037,25784.0,25782.0,0.09265477]
[1693579895681,0.176037,25784.0,25782.0,0.09265477]
[1693579895927,0.02611481,25783.0,25782.0,0.12965477]
[1693579896135,0.02611481,25783.0,25782.0,0.42965477]
[1693579896346,0.17249898,25784.0,25782.0,0.3]
[1693579896775,0.003,25784.0,25783.0,0.08437062]
[1693579896995,0.04,25788.0,25784.0,0.1604]
[1693579897231,0.04,25788.0,25786.0,0.1604]
[1693579897439,0.04,25788.0,25783.0,0.39167435]
[1693579897440,0.04,25788.0,25783.0,0.55207435]
[1693579897647,0.04,25788.0,25783.0,0.70690906]
[1693579897857,0.04,25788.0,25783.0,0.71381834]
[1693579898056,0.02083582,25787.0,25783.0,0.71381834]
[1693579898272,0.02083582,25787.0,25783.0,0.55898363]
[1693579898489,0.04,25788.0,25783.0,0.55898363]
[1693579898698,0.04,25786.0,25783.0,0.3]
[1693579898919,0.003,25784.0,25783.0,0.037]
[1693579899341,0.04,25786.0,25783.0,0.09667963]
[1693579899551,0.04,25786.0,25783.0,0.10467963]
[1693579899774,0.04,25786.0,25784.0,0.3]
[1693579900460,0.02080971,25785.0,25784.0,0.3]
[1693579900676,0.02080971,25785.0,25783.0,0.077835]
[1693579900677,0.23548531,25784.0,25783.0,0.077835]
[1693579900914,0.62219752,25784.0,25783.0,0.077835]
[1693579901151,0.46442801,25784.0,25783.0,0.077835]
[1693579901777,0.46442801,25784.0,25783.0,0.040835]
[1693579901989,0.46442801,25784.0,25783.0,0.13918655]
[1693579901990,0.07734123,25784.0,25783.0,0.13918655]
[1693579902642,0.62995578,25784.0,25783.0,0.040835]
[1693579902857,0.44708678,25784.0,25783.0,0.040835]
[1693579903087,0.06,25781.0,25780.0,0.09212967]
[1693579903302,0.06,25778.0,25777.0,0.09212967]
[1693579903563,0.06,25777.0,25776.0,0.09212967]
[1693579903801,0.06,25777.0,25776.0,0.13881064]
[1693579904009,0.06,25777.0,25776.0,0.13178344]
[1693579904223,0.06,25777.0,25776.0,0.0929728]
[1693579904651,0.06,25777.0,25775.0,0.0929728]
[1693579904652,0.28069582,25777.0,25775.0,0.0929728]
[1693579904867,0.06,25776.0,25775.0,0.0929728]
[1693579906349,0.06,25776.0,25775.0,0.1299728]
[1693579906562,0.44708678,25776.0,25775.0,0.1299728]
[1693579906971,0.44708678,25776.0,25775.0,0.037]
[1693579907465,0.06,25776.0,25775.0,0.20840713]
[1693579907884,0.06,25776.0,25775.0,0.17140713]
[1693579908093,0.06,25776.0,25775.0,0.20840713]
[1693579908094,0.063,25776.0,25775.0,0.20840713]
[1693579908505,0.063,25776.0,25775.0,0.11543433]
[1693579909151,0.003,25776.0,25775.0,0.037]
[1693579909361,0.003,25776.0,25775.0,0.1299728]
[1693579909580,0.06,25780.0,25775.0,1.13894931]
[1693579909793,0.06,25780.0,25778.0,0.09288474]
[1693579909794,0.02,25780.0,25778.0,0.09288474]
[1693579910011,0.06,25780.0,25778.0,0.40811945]
[1693579910221,0.06,25780.0,25778.0,0.09288474]
[1693579910443,0.06,25778.0,25776.0,0.19376218]
[1693579910653,0.06,25777.0,25776.0,0.10087744]
[1693579911085,0.06,25777.0,25776.0,0.09288474]
[1693579911328,0.06,25777.0,25776.0,0.1769638]
[1693579911541,0.06,25777.0,25776.0,0.09288474]
[1693579911748,0.06,25777.0,25776.0,0.25231339]
[1693579911949,0.06,25777.0,25776.0,0.15289785]
[1693579912153,0.06,25777.0,25776.0,0.2380044]
[1693579912379,0.063,25777.0,25776.0,0.2750044]
[1693579912605,0.063,25777.0,25776.0,0.097]
[1693579912810,0.063,25777.0,25776.0,0.16895235]
[1693579913219,0.063,25777.0,25776.0,0.18989785]
[1693579913435,0.003,25777.0,25776.0,0.18989785]
[1693579913676,0.003,25777.0,25776.0,1.06637545]
[1693579913914,0.003,25777.0,25776.0,0.7490712]
[1693579914117,0.003,25777.0,25776.0,1.25802935]
[1693579914322,0.003,25777.0,25776.0,1.09762935]
[1693579914533,0.003,25777.0,25776.0,0.58867168]
[1693579914942,0.003,25777.0,25776.0,0.70109799]
[1693579915159,0.003,25777.0,25776.0,0.90618213]
[1693579915575,0.003,25777.0,25776.0,0.99479092]
[1693579915786,0.003,25777.0,25776.0,0.57849632]
[1693579915996,0.003,25777.0,25776.0,1.08392919]
[1693579916207,0.003,25777.0,25776.0,0.99104166]
[1693579916403,0.003,25777.0,25776.0,1.08392171]
[1693579916816,0.003,25777.0,25776.0,0.99039001]
[1693579917027,0.003,25777.0,25776.0,0.9047661]
[1693579917234,0.003,25777.0,25776.0,0.56123414]
[1693579917437,0.003,25777.0,25776.0,0.48988508]
[1693579917642,0.003,25777.0,25776.0,0.58246772]
[1693579917858,0.003,25777.0,25776.0,0.70206197]
[1693579918071,0.003,25777.0,25776.0,0.46982797]
[1693579918487,0.003,25777.0,25776.0,0.56271305]
[1693579918707,0.003,25777.0,25776.0,0.97645369]
[1693579919321,0.003,25777.0,25776.0,0.70205554]
[1693579919530,0.003,25777.0,25776.0,0.48987865]
[1693579919737,0.1745649,25777.0,25776.0,0.48987865]
[1693579919942,0.1745649,25777.0,25776.0,0.097]
[1693579919943,0.2345649,25777.0,25776.0,0.097]
[1693579920150,0.2145649,25777.0,25776.0,0.097]
[1693579920361,0.2345649,25777.0,25776.0,0.097]
[1693579921034,0.6126733,25777.0,25776.0,0.097]
[1693579921263,0.6126733,25777.0,25776.0,0.037]
[1693579921675,0.063,25777.0,25776.0,0.11389178]
[1693579921877,0.063,25777.0,25776.0,0.037]
[1693579922299,0.63146857,25777.0,25776.0,0.037]
[1693579923971,0.043,25777.0,25776.0,0.19183471]
[1693579924179,0.06,25780.0,25776.0,0.58471804]
[1693579924382,0.06,25780.0,25778.0,0.1604]
[1693579924621,0.06,25785.0,25776.0,0.56920833]
[1693579924622,0.06,25779.0,25776.0,0.72960833]
[1693579924832,0.06,25779.0,25777.0,0.09288333]
[1693579925264,0.06,25779.0,25778.0,0.08164272]
[1693579925480,0.06,25779.0,25776.0,0.72960833]
[1693579925684,0.06,25779.0,25776.0,0.337]
[1693579925891,0.23304634,25779.0,25776.0,0.337]
[1693579926318,0.06,25779.0,25777.0,0.07720177]
[1693579926594,0.06,25779.0,25778.0,0.0950997]
[1693579926797,0.055,25779.0,25778.0,0.0950997]
[1693579927005,0.055,25779.0,25776.0,0.42987347]
[1693579927216,0.055,25779.0,25778.0,0.06]
[1693579927436,0.058,25779.0,25778.0,0.06]
[1693579927881,0.055,25779.0,25778.0,0.06]
[1693579928090,0.055,25779.0,25778.0,0.14160508]
[1693579928293,0.058,25779.0,25778.0,0.14160508]
[1693579928710,0.055,25779.0,25778.0,0.06]
[1693579928921,0.058,25779.0,25778.0,0.037]
[1693579929338,0.003,25779.0,25778.0,0.037]
[1693579929547,0.035,25783.0,25778.0,0.42408678]
[1693579929754,0.035,25783.0,25780.0,0.1604]
[1693579929968,0.055,25782.0,25780.0,0.31523471]
[1693579930174,0.055,25782.0,25780.0,0.4179]
[1693579930392,0.055,25782.0,25781.0,0.10191257]
[1693579931866,0.055,25782.0,25781.0,0.25710257]
[1693579932081,0.055,25782.0,25781.0,0.29410257]
[1693579932507,0.055,25782.0,25781.0,0.28290667]
[1693579932851,0.02,25787.0,25781.0,0.19219]
[1693579933084,0.055,25783.0,25782.0,0.15483471]
[1693579933290,0.055,25783.0,25781.0,0.19219]
[1693579933692,0.055,25782.0,25781.0,0.15519]
[1693579934057,0.055,25782.0,25781.0,0.24462027]
[1693579934929,0.055,25782.0,25781.0,0.28162027]
[1693579935660,0.40708678,25787.0,25781.0,0.19219]
[1693579935661,0.055,25784.0,25781.0,0.19219]
[1693579936050,0.055,25783.0,25781.0,0.26565675]
[1693579936249,0.035,25782.0,25781.0,0.19219]
[1693579936456,0.035,25782.0,25781.0,0.28666545]
[1693579936660,0.035,25782.0,25781.0,0.2304333]
[1693579936661,0.055,25782.0,25781.0,0.2304333]
[1693579936864,0.055,25782.0,25781.0,0.2584333]
[1693579937272,0.055,25782.0,25781.0,0.2304333]
[1693579937677,0.055,25782.0,25781.0,0.2674333]
[1693579938399,0.64435117,25782.0,25781.0,0.037]
[1693579939053,0.64435117,25782.0,25777.0,0.09296493]
[1693579939054,1.08818678,25782.0,25777.0,0.09296493]
[1693579939272,1.08818678,25782.0,25775.0,0.09296493]
[1693579939273,0.055,25776.0,25775.0,0.09296493]
[1693579939544,0.44208678,25776.0,25775.0,0.155242]
[1693579939658,0.055,25776.0,25774.0,0.23227514]
[1693579939876,0.055,25775.0,25774.0,0.09296493]
[1693579940519,0.055,25775.0,25774.0,0.23227514]
[1693579940777,0.055,25775.0,25774.0,0.22125305]
[1693579940986,0.055,25775.0,25774.0,0.55118684]
[1693579941119,0.003,25775.0,25774.0,0.79502358]
[1693579941330,0.035,25781.0,25774.0,1.10476138]
[1693579941561,0.035,25781.0,25780.0,0.1604]
[1693579941779,0.055,25781.0,25780.0,0.31523471]
[1693579941987,0.055,25781.0,25779.0,0.34925218]
[1693579942546,0.055,25781.0,25780.0,0.09295218]
[1693579942769,0.055,25782.0,25780.0,0.09295218]
[1693579942991,0.035,25781.0,25780.0,0.38318045]
[1693579943193,0.038,25781.0,25780.0,0.24375218]
[1693579943400,0.038,25781.0,25780.0,0.34305482]
[1693579943609,0.035,25781.0,25780.0,0.24375218]
[1693579944029,0.035,25781.0,25780.0,0.28075218]
[1693579944458,0.003,25782.0,25780.0,0.28075218]
[1693579944675,0.035,25785.0,25781.0,0.87299114]
[1693579944881,0.035,25785.0,25782.0,0.40818991]
[1693579945095,0.035,25785.0,25783.0,0.3]
[1693579945994,0.21420983,25785.0,25783.0,0.3]
[1693579946201,0.035,25785.0,25783.0,0.3]
[1693579946411,0.035,25785.0,25784.0,0.03833731]
[1693579948141,0.035,25785.0,25784.0,0.07633731]
[1693579948354,0.035,25785.0,25784.0,0.12442545]
[1693579949187,0.035,25785.0,25784.0,0.038]
[1693579949436,0.035,25785.0,25784.0,0.11046772]
[1693579949649,0.035,25785.0,25784.0,0.038]
[1693579950065,0.035,25785.0,25784.0,0.13125536]
[1693579950727,0.24201393,25785.0,25784.0,0.038]
[1693579950942,0.055,25785.0,25784.0,0.038]
[1693579951582,0.21749933,25785.0,25784.0,0.038]
[1693579952645,0.58857688,25785.0,25784.0,0.038]
[1693579953827,0.055,25785.0,25784.0,0.11716104]
[1693579954419,0.055,25785.0,25784.0,0.038]
[1693579955255,0.055,25785.0,25784.0,0.12743146]
[1693579956081,0.055,25785.0,25784.0,0.038]
[1693579956504,0.25412513,25785.0,25784.0,0.038]
[1693579956920,0.055,25785.0,25784.0,0.038]
[1693579957111,0.055,25785.0,25784.0,0.12405675]
[1693579959492,0.055,25785.0,25784.0,0.038]
[1693579959705,0.055,25785.0,25784.0,0.11914206]
[1693579962331,0.055,25785.0,25784.0,0.038]
[1693579962551,0.25225629,25785.0,25784.0,0.038]
[1693579963253,0.055,25785.0,25784.0,0.13890511]
[1693579965035,0.64362262,25785.0,25784.0,0.038]
[1693579965240,0.61410308,25785.0,25784.0,0.038]
[1693579967940,0.44208678,25785.0,25784.0,0.038]
[1693579968161,1.02778678,25785.0,25784.0,0.038]
[1693579968366,1.28898678,25785.0,25784.0,0.038]
[1693579968576,1.18818678,25785.0,25784.0,0.038]
[1693579968986,1.25868678,25785.0,25784.0,0.038]
[1693579969197,1.36606752,25785.0,25784.0,0.038]
[1693579969412,0.61996752,25785.0,25784.0,0.038]
[1693579969625,0.65996752,25785.0,25784.0,0.038]
[1693579970249,0.48208678,25785.0,25784.0,0.038]
[1693579970877,0.64248678,25785.0,25784.0,0.038]
[1693579973169,0.64248678,25785.0,25784.0,0.037719]
[1693579975019,0.83634687,25785.0,25784.0,0.037719]
[1693579975222,0.64248678,25785.0,25784.0,0.037719]
[1693579975853,0.62248678,25785.0,25784.0,0.037719]
[1693579976053,0.64248678,25785.0,25784.0,0.037719]
[1693579976262,0.66248678,25785.0,25784.0,0.037719]
[1693579976467,0.64248678,25785.0,25784.0,0.037719]
[1693579976878,0.71328678,25785.0,25784.0,0.037719]
[1693579977108,1.31064678,25785.0,25784.0,0.037719]
[1693579977317,1.29438678,25785.0,25784.0,0.037719]
[1693579977522,1.18818678,25785.0,25784.0,0.037719]
[1693579978136,0.035,25778.0,25777.0,0.264]
[1693579978353,0.055,25778.0,25777.0,0.264]
[1693579978768,0.035,25782.0,25777.0,0.65108678]
[1693579978979,0.055,25785.0,25784.0,0.10145403]
[1693579979191,0.055,25785.0,25784.0,0.25628874]
[1693579979613,0.055,25785.0,25784.0,0.10145403]
[1693579979828,0.09143042,25791.0,25784.0,0.10145403]
[1693579980044,0.055,25785.0,25784.0,0.25664203]
[1693579980255,0.055,25785.0,25784.0,0.27064203]
[1693579980469,0.055,25785.0,25784.0,0.27048088]
[1693579980894,0.055,25785.0,25784.0,0.169188]
[1693579981107,0.055,25785.0,25784.0,0.014]
[1693579981320,0.055,25785.0,25784.0,0.09437753]
[1693579981525,0.05472243,25785.0,25784.0,0.08037753]
[1693579981741,0.03472243,25785.0,25784.0,0.08288425]
[1693579981956,0.05472243,25785.0,25784.0,0.08288425]
[1693579982577,0.05472243,25785.0,25784.0,0.11988425]
[1693579982990,0.05472243,25785.0,25784.0,0.08288425]
[1693579983400,0.05472243,25785.0,25784.0,0.11988425]
[1693579983817,0.40708678,25790.0,25784.0,0.037]
[1693579983818,0.03472243,25789.0,25784.0,0.037]
[1693579984027,0.05472243,25787.0,25786.0,0.1604]
[1693579984875,0.05472243,25787.0,25784.0,0.615579]
[1693579985085,0.05472243,25787.0,25786.0,0.09733044]
[1693579985513,0.03472243,25787.0,25786.0,0.09733044]
[1693579985724,0.05472243,25787.0,25786.0,0.13533044]
[1693579986339,0.05472243,25787.0,25786.0,0.038]
[1693579986563,0.05472243,25787.0,25786.0,0.12615683]
[1693579987441,0.05472243,25787.0,25786.0,0.12578583]
[1693579987664,0.05472243,25787.0,25786.0,0.037629]
[1693579988089,0.03472243,25788.0,25786.0,0.037629]
[1693579989294,0.03472243,25788.0,25786.0,0.07760152]